fUST/lending_fUST_20250726
["ID","MTS","AMOUNT","RATE_DAILY","PERIOD"]
[375059427,1753515036460,-2388.47,0.00019178,2]
[375059428,1753515036470,-460.0,0.00019178,2]
[375059429,1753515036480,-500.0,0.00019178,2]
[375059430,1753515036565,-500.0,0.00019178,2]
[375059431,1753515036574,-500.0,0.00019178,2]
[375059432,1753515036584,-500.0,0.00019178,2]
[375059433,1753515036593,-500.0,0.00019178,2]
[375059434,1753515036602,-500.0,0.00019178,2]
[375059435,1753515036612,-500.0,0.00019178,2]
[375059436,1753515036621,-500.0,0.00019178,2]
[375059437,1753515036630,-500.0,0.00019178,2]
[375059438,1753515036639,-460.0,0.00019178,2]
[375059439,1753515036649,-500.0,0.00019178,2]
[375059440,1753515036658,-500.0,0.00019178,2]
[375059441,1753515036667,-500.0,0.00019178,2]
[375059442,1753515036676,-460.0,0.00019178,2]
[375059443,1753515036686,-464.07346005,0.00019178,2]
[375059444,1753515036695,-437.81983444,0.00019178,2]
[375059445,1753515036705,-460.0,0.00019178,2]
[375059446,1753515036715,-1184.69,0.00019178,2]
[375059447,1753515036725,-460.0,0.00019178,2]
[375059448,1753515036735,-460.0,0.00019178,2]
[375059449,1753515036745,-855.91,0.00019178,2]
[375059450,1753515036754,-1220.5,0.00019178,2]
[375059451,1753515036766,-460.0,0.00019178,2]
[375059452,1753515036776,-460.0,0.00019178,2]
[375059453,1753515036785,-241.02458018,0.00019178,2]
[375059454,1753515036794,-460.0,0.00019178,2]
[375059455,1753515036803,-460.0,0.00019178,2]
[375059456,1753515036813,-460.0,0.00019178,2]
[375059457,1753515036823,-460.0,0.00019178,2]
[375059458,1753515036833,-500.05,0.00019178,2]
[375059459,1753515036842,-460.0,0.00019178,2]
[375059460,1753515036853,-460.0,0.00019178,2]
[375059461,1753515036863,-551.19,0.00019178,2]
[375059462,1753515036872,-1084.88,0.00019178,2]
[375059463,1753515036884,-1595.52,0.00019178,2]
[375059464,1753515036895,-463.76648307,0.00019178,2]
[375059465,1753515036905,-460.0,0.00019178,2]
[375059466,1753515036914,-460.0,0.00019178,2]
[375059467,1753515036924,-417.45853,0.00019178,2]
[375059468,1753515036933,-506.33949685,0.00019178,2]
[375059469,1753515036943,-1869.85,0.00019178,2]
[375059470,1753515036952,-460.0,0.00019178,2]
[375059471,1753515036961,-511.22943217,0.00019178,2]
[375059472,1753515036970,-460.0,0.00019178,2]
[375059473,1753515036980,-460.0,0.00019178,2]
[375059474,1753515036989,-375.29624407,0.00019178,2]
[375059475,1753515036998,-493.15773447,0.00019178,2]
[375059476,1753515037007,-460.0,0.00019178,2]
[375059477,1753515037017,-460.0,0.00019178,2]
[375059478,1753515037027,-460.0,0.00019178,2]
[375059479,1753515037036,-460.0,0.00019178,2]
[375059480,1753515037046,-460.0,0.00019178,2]
[375059481,1753515037056,-460.0,0.00019178,2]
[375059482,1753515037065,-461.84711342,0.00019178,2]
[375059483,1753515037075,-465.71497953,0.00019178,2]
[375059484,1753515037084,-7265.3,0.00019178,2]
[375059485,1753515037094,-361.49935762,0.00019178,2]
[375059486,1753515037103,-460.0,0.00019178,2]
[375059487,1753515037112,-546.05,0.00019178,2]
[375059488,1753515037122,-1002.57953395,0.00019178,2]
[375059489,1753515037131,-460.0,0.00019178,2]
[375059490,1753515037140,-460.0,0.00019178,2]
[375059491,1753515037149,-460.0,0.00019178,2]
[375059492,1753515037159,-460.0,0.00019178,2]
[375059493,1753515037169,-462.30616764,0.00019178,2]
[375059494,1753515037179,-460.0,0.00019178,2]
[375059495,1753515037188,-460.0,0.00019178,2]
[375059496,1753515037198,-460.0,0.00019178,2]
[375059497,1753515037207,-550.91299763,0.00019178,2]
[375059498,1753515037216,-460.0,0.00019178,2]
[375059499,1753515037225,-460.0,0.00019178,2]
[375059500,1753515037235,-460.0,0.00019178,2]
[375059501,1753515037254,-460.0,0.00019178,2]
[375059502,1753515037271,-460.0,0.00019178,2]
[375059503,1753515037284,-460.0,0.00019178,2]
[375059504,1753515037300,-460.0,0.00019178,2]
[375059505,1753515037316,-460.0,0.00019178,2]
[375059506,1753515037332,-460.0,0.00019178,2]
[375059507,1753515037349,-460.0,0.00019178,2]
[375059508,1753515037363,-460.0,0.00019178,2]
[375059509,1753515037378,-791.37,0.00019178,2]
[375059510,1753515037391,-460.0,0.00019178,2]
[375059511,1753515037407,-931.32,0.00019178,2]
[375059512,1753515037421,-460.0,0.00019178,2]
[375059513,1753515037433,-460.0,0.00019178,2]
[375059514,1753515037447,-460.0,0.00019178,2]
[375059518,1753515037672,-4851.72,0.00019178,2]
[375059521,1753515037687,-460.0,0.00019178,2]
[375059524,1753515037704,-560.62,0.00019178,2]
[375059526,1753515037720,-504.90166224,0.00019178,2]
[375059529,1753515037731,-460.0,0.00019178,2]
[375059531,1753515037743,-460.0,0.00019178,2]
[375059533,1753515037759,-3091.34,0.00019178,2]
[375059536,1753515037776,-460.0,0.00019178,2]
[375059538,1753515037787,-289.04189171,0.00019178,2]
[375059541,1753515037799,-460.0,0.00019178,2]
[375059543,1753515037814,-460.0,0.00019178,2]
[375059545,1753515037825,-460.0,0.00019178,2]
[375059548,1753515037836,-460.0,0.00019178,2]
[375059550,1753515037848,-571.47,0.00019178,2]
[375059552,1753515037861,-460.0,0.00019178,2]
[375059554,1753515037873,-460.0,0.00019178,2]
[375059557,1753515037887,-460.0,0.00019178,2]
[375059559,1753515037899,-500.0,0.00019178,2]
[375059561,1753515037911,-460.0,0.00019178,2]
[375059564,1753515037923,-460.0,0.00019178,2]
[375059566,1753515037935,-460.0,0.00019178,2]
[375059568,1753515037948,-460.0,0.00019178,2]
[375059571,1753515037960,-460.0,0.00019178,2]
[375059573,1753515037972,-460.0,0.00019178,2]
[375059575,1753515037985,-460.0,0.00019178,2]
[375059578,1753515037997,-325.2509377,0.00019178,2]
[375059580,1753515038009,-460.85160078,0.00019178,2]
[375059582,1753515038021,-991.85,0.00019178,2]
[375059585,1753515038034,-197.43037664,0.00019178,2]
[375059587,1753515038047,-460.0,0.00019178,2]
[375059589,1753515038060,-462.09058776,0.00019178,2]
[375059592,1753515038073,-460.0,0.00019178,2]
[375059594,1753515038085,-575.51,0.00019178,2]
[375059596,1753515038098,-460.0,0.00019178,2]
[375059599,1753515038111,-460.0,0.00019178,2]
[375059601,1753515038124,-460.0,0.00019178,2]
[375059603,1753515038136,-753.68,0.00019178,2]
[375059606,1753515038149,-460.0,0.00019178,2]
[375059608,1753515038161,-460.0,0.00019178,2]
[375059610,1753515038173,-460.0,0.00019178,2]
[375059613,1753515038186,-460.0,0.00019178,2]
[375059615,1753515038200,-573.19673143,0.00019178,2]
[375059617,1753515038213,-460.0,0.00019178,2]
[375059620,1753515038226,-460.0,0.00019178,2]
[375059622,1753515038238,-2756.31,0.00019178,2]
[375059624,1753515038250,-460.0,0.00019178,2]
[375059627,1753515038263,-460.0,0.00019178,2]
[375059629,1753515038275,-460.0,0.00019178,2]
[375059631,1753515038284,-460.0,0.00019178,2]
[375059633,1753515038294,-460.0,0.00019178,2]
[375059635,1753515038303,-460.0,0.00019178,2]
[375059637,1753515038313,-460.0,0.00019178,2]
[375059639,1753515038322,-460.0,0.00019178,2]
[375059642,1753515038331,-468.27143303,0.00019178,2]
[375059645,1753515038340,-3513.3,0.00019178,2]
[375059664,1753515038489,-435.22296729,0.00019178,2]
[375059666,1753515038504,-460.0,0.00019178,2]
[375059668,1753515038513,-460.0,0.00019178,2]
[375059670,1753515038523,-460.0,0.00019178,2]
[375059672,1753515038532,-891.82,0.00019178,2]
[375059674,1753515038541,-460.0,0.00019178,2]
[375059676,1753515038550,-460.0,0.00019178,2]
[375059678,1753515038559,-461.42057068,0.00019178,2]
[375059680,1753515038567,-460.0,0.00019178,2]
[375059682,1753515038575,-460.0,0.00019178,2]
[375059685,1753515038584,-348.1456239,0.00019178,2]
[375059687,1753515038593,-744.5,0.00019178,2]
[375059689,1753515038600,-460.0,0.00019178,2]
[375059690,1753515038607,-3939.24,0.00019178,2]
[375059692,1753515038614,-1007.23,0.00019178,2]
[375059694,1753515038623,-423.62188996,0.00019178,2]
[375059696,1753515038632,-1559.03,0.00019178,2]
[375059698,1753515038641,-460.0,0.00019178,2]
[375059700,1753515038650,-481.67,0.00019178,2]
[375059702,1753515038659,-464.7501534,0.00019178,2]
[375059704,1753515038668,-386.82955769,0.00019178,2]
[375059706,1753515038678,-460.0,0.00019178,2]
[375059708,1753515038687,-460.0,0.00019178,2]
[375059710,1753515038696,-460.0,0.00019178,2]
[375059712,1753515038707,-460.0,0.00019178,2]
[375059714,1753515038717,-800.68,0.00019178,2]
[375059716,1753515038727,-460.0,0.00019178,2]
[375059719,1753515038737,-460.0,0.00019178,2]
[375059721,1753515038749,-460.0,0.00019178,2]
[375059723,1753515038761,-460.0,0.00019178,2]
[375059725,1753515038770,-460.0,0.00019178,2]
[375059726,1753515038780,-1032.08,0.00019178,2]
[375059728,1753515038789,-460.0,0.00019178,2]
[375059731,1753515038799,-460.0,0.00019178,2]
[375059732,1753515038808,-460.0,0.00019178,2]
[375059735,1753515038817,-484.59,0.00019178,2]
[375059736,1753515038826,-460.0,0.00019178,2]
[375059739,1753515038836,-831.0,0.00019178,2]
[375059740,1753515038845,-460.0,0.00019178,2]
[375059743,1753515038854,-460.0,0.00019178,2]
[375059745,1753515038864,-216.01711023,0.00019178,2]
[375059746,1753515038873,-707.07,0.00019178,2]
[375059748,1753515038882,-460.0,0.00019178,2]
[375059750,1753515038891,-460.0,0.00019178,2]
[375059752,1753515038900,-460.0,0.00019178,2]
[375059754,1753515038909,-460.83812287,0.00019178,2]
[375059756,1753515038919,-460.0,0.00019178,2]
[375059758,1753515038928,-3059.55,0.00019178,2]
[375059760,1753515038937,-2415.95,0.00019178,2]
[375059762,1753515038946,-460.0,0.00019178,2]
[375059764,1753515038955,-460.0,0.00019178,2]
[375059766,1753515038964,-460.0,0.00019178,2]
[375059768,1753515038974,-460.0,0.00019178,2]
[375059770,1753515038983,-460.0,0.00019178,2]
[375059772,1753515038992,-10973.95,0.00019178,2]
[375059774,1753515039001,-468.63,0.00019178,2]
[375059775,1753515039010,-461.1613966,0.00019178,2]
[375059776,1753515039019,-227.43223821,0.00019178,2]
[375059777,1753515039027,-975.41,0.00019178,2]
[375059778,1753515039036,-460.0,0.00019178,2]
[375059779,1753515039045,-548.11,0.00019178,2]
[375059780,1753515039055,-460.0,0.00019178,2]
[375059781,1753515039064,-460.0,0.00019178,2]
[375059782,1753515039073,-460.0,0.00019178,2]
[375059783,1753515039082,-2949.85,0.00019178,2]
[375059784,1753515039091,-500.0,0.00019178,2]
[375059785,1753515039100,-500.0,0.00019178,2]
[375059786,1753515039109,-460.0,0.00019178,2]
[375059787,1753515039119,-500.0,0.00019178,2]
[375059788,1753515039128,-500.0,0.00019178,2]
[375059789,1753515039137,-460.0,0.00019178,2]
[375059790,1753515039147,-179.24335359,0.00019178,2]
[375059791,1753515039156,-460.0,0.00019178,2]
[375059792,1753515039165,-460.0,0.00019178,2]
[375059793,1753515039174,-550.12922982,0.00019178,2]
[375059794,1753515039184,-2254.7,0.00019178,2]
[375059795,1753515039193,-460.0,0.00019178,2]
[375059796,1753515039202,-464.46021431,0.00019178,2]
[375059797,1753515039211,-699.76,0.00019178,2]
[375059798,1753515039219,-460.0,0.00019178,2]
[375059799,1753515039228,-460.0,0.00019178,2]
[375059800,1753515039238,-460.0,0.00019178,2]
[375059801,1753515039247,-460.0,0.00019178,2]
[375059802,1753515039256,-460.0,0.00019178,2]
[375059803,1753515039265,-1552.02,0.00019178,2]
[375059804,1753515039274,-460.0,0.00019178,2]
[375059805,1753515039283,-460.0,0.00019178,2]
[375059806,1753515039292,-460.0,0.00019178,2]
[375059808,1753515039302,-460.0,0.00019178,2]
[375059810,1753515039312,-469.41,0.00019178,2]
[375059812,1753515039321,-633.22,0.00019178,2]
[375059814,1753515039330,-460.0,0.00019178,2]
[375059816,1753515039339,-460.0,0.00019178,2]
[375059818,1753515039348,-460.0,0.00019178,2]
[375059820,1753515039358,-460.0,0.00019178,2]
[375059822,1753515039367,-666.0,0.00019178,2]
[375059824,1753515039376,-500.0,0.00019178,2]
[375059826,1753515039385,-559.751087,0.00019178,2]
[375059828,1753515039395,-1719.11730584,0.00019205,5]
[375059829,1753515039405,-151.0,0.00019221,2]
[375059831,1753515039415,-151.0,0.00019221,2]
[375059834,1753515039424,-162.66914502,0.00019261,2]
[375059836,1753515039434,-503.20147929,0.00019273,2]
[375059838,1753515039446,-151.0,0.00019329,2]
[375059839,1753515039456,-238.869894,0.00019329,2]
[375059841,1753515039465,-151.0,0.00019329,2]
[375059843,1753515039475,-151.484814,0.00019329,2]
[375059845,1753515039485,-151.0,0.00019329,2]
[375059848,1753515039494,-153.379069,0.00019329,2]
[375059850,1753515039504,-151.0,0.00019329,2]
[375059851,1753515039514,-151.0,0.00019329,2]
[375059853,1753515039523,-151.0,0.00019329,2]
[375059856,1753515039533,-151.0,0.00019329,2]
[375059858,1753515039543,-100000.0,0.00019329,2]
[375059860,1753515039552,-500.0,0.00019351,2]
[375059862,1753515039562,-162.66914502,0.00019352,2]
[375059863,1753515039571,-500.0,0.00019367,2]
[375059866,1753515039581,-234.695073,0.00019368,2]
[375059868,1753515039590,-234.695073,0.00019368,2]
[375059870,1753515039599,-526.41699184,0.00019379,2]
[375059871,1753515039609,-312.16666667,0.00019379,2]
[375059873,1753515039618,-214.8008262,0.00019379,2]
[375059875,1753515039627,-160.0,0.00019379,2]
[375059877,1753515039636,-160.0,0.00019379,2]
[375059879,1753515039646,-476.98041219,0.00019379,2]
[375059881,1753515039655,-160.0,0.00019379,2]
[375059883,1753515039665,-840.57612966,0.00019379,2]
[375059885,1753515039674,-231.25662632,0.00019379,2]
[375059887,1753515039683,-12629.83479014,0.00019379,2]
[375059889,1753515039693,-215.9757969,0.00019379,2]
[375059891,1753515039702,-160.0,0.00019379,2]
[375059893,1753515039712,-460.0,0.00019451,2]
[375059895,1753515039722,-460.0,0.00019451,2]
[375059897,1753515039731,-460.0,0.00019451,2]
[375059899,1753515039740,-460.0,0.00019451,2]
[375059901,1753515039752,-460.78485605,0.00019451,2]
[375059903,1753515039761,-460.0,0.00019451,2]
[375059905,1753515039771,-460.0,0.00019451,2]
[375059907,1753515039780,-464.33088244,0.00019451,2]
[375059909,1753515039789,-460.0,0.00019451,2]
[375059911,1753515039798,-460.0,0.00019451,2]
[375059913,1753515039808,-460.51803613,0.00019451,2]
[375059915,1753515039818,-461.50855468,0.00019451,2]
[375059917,1753515039827,-3016.347236,0.00019451,2]
[375059919,1753515039836,-500.0,0.00019451,2]
[375059921,1753515039846,-500.0,0.00019451,2]
[375059923,1753515039855,-500.0,0.00019451,2]
[375059925,1753515039865,-402.02354044,0.00019451,2]
[375059927,1753515039875,-460.0,0.00019452,2]
[375059929,1753515039884,-460.0,0.00019452,2]
[375059931,1753515039893,-460.0,0.00019452,2]
[375059933,1753515039903,-460.0,0.00019452,2]
[375059935,1753515039912,-460.0,0.00019452,2]
[375059937,1753515039922,-151.0,0.00019452,2]
[375059939,1753515039932,-151.0,0.00019452,2]
[375059941,1753515039941,-151.0,0.00019452,2]
[375059943,1753515039950,-463.82105709,0.00019452,2]
[375059945,1753515039960,-460.0,0.00019452,2]
[375059947,1753515039970,-460.0,0.00019452,2]
[375059949,1753515039979,-460.0,0.00019452,2]
[375059951,1753515039988,-465.33763765,0.00019452,2]
[375059953,1753515039998,-460.0,0.00019452,2]
[375059955,1753515040007,-460.0,0.00019452,2]
[375059957,1753515040016,-460.0,0.00019452,2]
[375059959,1753515040026,-461.0345749,0.00019452,2]
[375059961,1753515040036,-460.0,0.00019452,2]
[375059963,1753515040045,-460.0,0.00019452,2]
[375059965,1753515040055,-460.0,0.00019452,2]
[375059967,1753515040064,-460.0,0.00019452,2]
[375059969,1753515040073,-460.0,0.00019452,2]
[375059971,1753515040082,-460.0,0.00019452,2]
[375059973,1753515040092,-460.0,0.00019452,2]
[375059975,1753515040101,-460.0,0.00019452,2]
[375059977,1753515040111,-234.695073,0.00019452,2]
[375059979,1753515040120,-234.695073,0.00019452,2]
[375059981,1753515040130,-461.61852314,0.00019452,2]
[375059983,1753515040139,-234.695073,0.00019452,2]
[375059985,1753515040149,-464.33689463,0.00019452,2]
[375059987,1753515040159,-234.695073,0.00019452,2]
[375059989,1753515040169,-234.695073,0.00019452,2]
[375059991,1753515040179,-460.0,0.00019452,2]
[375059993,1753515040188,-234.695073,0.00019452,2]
[375059995,1753515040198,-460.0,0.00019452,2]
[375059997,1753515040207,-460.0,0.00019452,2]
[375059999,1753515040217,-460.0,0.00019452,2]
[375060001,1753515040239,-460.0,0.00019452,2]
[375060003,1753515040258,-460.0,0.00019452,2]
[375060005,1753515040269,-460.91740901,0.00019452,2]
[375060007,1753515040279,-460.0,0.00019452,2]
[375060009,1753515040288,-460.0,0.00019452,2]
[375060011,1753515040298,-460.0,0.00019452,2]
[375060013,1753515040307,-460.0,0.00019452,2]
[375060015,1753515040317,-440.22618103,0.00019452,2]
[375060017,1753515040326,-460.0,0.00019452,2]
[375060019,1753515040336,-460.0,0.00019452,2]
[375060021,1753515040345,-460.0,0.00019452,2]
[375060023,1753515040355,-460.0,0.00019452,2]
[375060025,1753515040366,-460.0,0.00019452,2]
[375060027,1753515040375,-460.0,0.00019452,2]
[375060029,1753515040385,-461.98037566,0.00019452,2]
[375060031,1753515040395,-460.97361261,0.00019452,2]
[375060033,1753515040404,-460.0,0.00019452,2]
[375060035,1753515040414,-460.0,0.00019452,2]
[375060037,1753515040424,-460.0,0.00019452,2]
[375060039,1753515040433,-566.50310646,0.00019452,2]
[375060041,1753515040443,-460.0,0.00019452,2]
[375060043,1753515040452,-460.0,0.00019452,2]
[375060045,1753515040462,-460.72923665,0.00019452,2]
[375060047,1753515040471,-462.48230878,0.00019452,2]
[375060049,1753515040480,-460.0,0.00019452,2]
[375060051,1753515040489,-460.0,0.00019452,2]
[375060053,1753515040499,-460.0,0.00019452,2]
[375060055,1753515040507,-265.17840848,0.00019452,2]
[375060057,1753515040517,-460.0,0.00019452,2]
[375060059,1753515040526,-463.09942501,0.00019452,2]
[375060061,1753515040535,-460.0,0.00019452,2]
[375060063,1753515040545,-460.0,0.00019452,2]
[375060065,1753515040555,-460.0,0.00019452,2]
[375060067,1753515040564,-460.0,0.00019452,2]
[375060069,1753515040574,-461.04740966,0.00019452,2]
[375060071,1753515040583,-466.45132887,0.00019452,2]
[375060073,1753515040592,-460.0,0.00019452,2]
[375060075,1753515040601,-460.0,0.00019452,2]
[375060077,1753515040611,-470.67417718,0.00019452,2]
[375060079,1753515040621,-460.0,0.00019452,2]
[375060081,1753515040631,-266.94701857,0.00019452,2]
[375060083,1753515040640,-460.0,0.00019452,2]
[375060085,1753515040650,-460.0,0.00019452,2]
[375060087,1753515040659,-460.0,0.00019452,2]
[375060098,1753515040756,-460.0,0.00019452,2]
[375060100,1753515040766,-460.0,0.00019452,2]
[375060102,1753515040775,-460.0,0.00019452,2]
[375060104,1753515040785,-460.0,0.00019452,2]
[375060106,1753515040795,-767.27,0.00019452,2]
[375060108,1753515040804,-460.0,0.00019452,2]
[375060110,1753515040813,-462.08065357,0.00019452,2]
[375060112,1753515040823,-460.0,0.00019452,2]
[375060114,1753515040832,-460.0,0.00019452,2]
[375060116,1753515040842,-460.0,0.00019452,2]
[375060118,1753515040851,-460.0,0.00019452,2]
[375060120,1753515040860,-460.0,0.00019452,2]
[375060122,1753515040869,-463.78968443,0.00019452,2]
[375060124,1753515040879,-465.71372216,0.00019452,2]
[375060126,1753515040888,-492.73850724,0.00019452,2]
[375060128,1753515040897,-460.0,0.00019452,2]
[375060130,1753515040907,-460.0,0.00019452,2]
[375060132,1753515040916,-460.0,0.00019452,2]
[375060134,1753515040925,-460.0,0.00019452,2]
[375060136,1753515040934,-460.0,0.00019452,2]
[375060138,1753515040944,-460.0,0.00019452,2]
[375060140,1753515040953,-466.48279146,0.00019452,2]
[375060142,1753515040963,-462.5272426,0.00019452,2]
[375060144,1753515040972,-467.47414569,0.00019452,2]
[375060146,1753515040982,-460.0,0.00019452,2]
[375060148,1753515040991,-460.0,0.00019452,2]
[375060150,1753515041000,-460.0,0.00019452,2]
[375060152,1753515041010,-460.0,0.00019452,2]
[375060154,1753515041019,-460.0,0.00019452,2]
[375060156,1753515041029,-460.0,0.00019452,2]
[375060158,1753515041038,-504.05202461,0.00019452,2]
[375060160,1753515041048,-371.85781953,0.00019452,2]
[375060162,1753515041057,-715.11,0.00019452,2]
[375060164,1753515041067,-460.0,0.00019452,2]
[375060166,1753515041076,-460.0,0.00019452,2]
[375060168,1753515041086,-460.0,0.00019452,2]
[375060170,1753515041095,-460.0,0.00019452,2]
[375060172,1753515041105,-460.0,0.00019452,2]
[375060174,1753515041116,-460.0,0.00019452,2]
[375060176,1753515041127,-837.61,0.00019452,2]
[375060178,1753515041136,-526.84971027,0.00019452,2]
[375060180,1753515041145,-460.0,0.00019452,2]
[375060182,1753515041154,-460.0,0.00019452,2]
[375060184,1753515041164,-460.0,0.00019452,2]
[375060186,1753515041174,-460.0,0.00019452,2]
[375060188,1753515041183,-460.0,0.00019452,2]
[375060190,1753515041193,-460.0,0.00019452,2]
[375060192,1753515041202,-465.86451168,0.00019452,2]
[375060194,1753515041212,-460.0,0.00019452,2]
[375060196,1753515041221,-460.0,0.00019452,2]
[375060198,1753515041231,-460.0,0.00019452,2]
[375060200,1753515041240,-460.0,0.00019452,2]
[375060202,1753515041249,-460.0,0.00019452,2]
[375060204,1753515041259,-460.0,0.00019452,2]
[375060206,1753515041269,-460.0,0.00019452,2]
[375060208,1753515041278,-1124.76,0.00019452,2]
[375060210,1753515041287,-460.0,0.00019452,2]
[375060212,1753515041297,-460.0,0.00019452,2]
[375060213,1753515041306,-430.55259077,0.00019452,2]
[375060215,1753515041315,-591.7985972,0.00019452,2]
[375060217,1753515041325,-460.0,0.00019452,2]
[375060219,1753515041334,-334.38314468,0.00019452,2]
[375060288,1753515041988,-460.0,0.00019178,2]
[375060290,1753515041998,-461.43911453,0.00019178,2]
[375060292,1753515042007,-460.0,0.00019178,2]
[375060294,1753515042017,-460.0,0.00019178,2]
[375060297,1753515042027,-460.0,0.00019178,2]
[375060298,1753515042037,-125.61685532,0.00019452,2]
[375060300,1753515042046,-460.0,0.00019452,2]
[375060303,1753515042056,-460.0,0.00019452,2]
[375060305,1753515042066,-460.0,0.00019452,2]
[375060306,1753515042075,-460.0,0.00019452,2]
[375060309,1753515042085,-460.0,0.00019452,2]
[375060310,1753515042094,-460.0,0.00019452,2]
[375060312,1753515042104,-460.0,0.00019452,2]
[375060314,1753515042114,-460.0,0.00019452,2]
[375060317,1753515042124,-460.0,0.00019452,2]
[375060319,1753515042133,-118.66873226,0.00019452,2]
[375060426,1753515043054,-341.33126774,0.00019452,2]
[375060428,1753515043064,-460.0,0.00019452,2]
[375060430,1753515043073,-460.0,0.00019452,2]
[375060432,1753515043083,-460.0,0.00019452,2]
[375060434,1753515043092,-245.24777574,0.00019452,2]
[375060706,1753515046097,-711.97,0.00019178,2]
[375060708,1753515046107,-460.0,0.00019178,2]
[375060710,1753515046117,-142.58798276,0.00019178,2]
[375060720,1753515046203,-317.80885993,0.00019178,2]
[375060722,1753515046212,-970.4553269,0.00019178,2]
[375065417,1753515231456,235.649663,0.00013699,2]
[375065419,1753516049292,-190.77482171,0.000189,2]
[375065420,1753516049314,-1200.0,0.00019077,2]
[375065421,1753516049334,-184.35836438,0.00019078,2]
[375065422,1753516049354,-3866.26617063,0.00019078,2]
[375065423,1753516049375,-4415.32629687,0.00019078,2]
[375065424,1753516049396,-300.0,0.00019099,2]
[375065425,1753516049415,-19487.50692935,0.000191,2]
[375065426,1753516049436,-215.0738,0.00019166,2]
[375065427,1753516049462,-249.36,0.00019168,3]
[375065428,1753516049483,-748.08,0.00019168,3]
[375065429,1753516049503,-500.0,0.00019173,2]
[375065430,1753516049525,-543.64754013,0.00019173,2]
[375065431,1753516049548,-503.54914706,0.00019173,2]
[375065432,1753516049568,-505.18533777,0.00019173,2]
[375065433,1753516049588,-520.50620703,0.00019173,2]
[375065434,1753516049609,-500.0,0.00019173,2]
[375065435,1753516049628,-500.0,0.00019173,2]
[375065436,1753516049650,-500.0,0.00019177,2]
[375065437,1753516049675,-334.89544425,0.00019177,2]
[375065438,1753516049697,-500.0,0.00019177,2]
[375065439,1753516049720,-500.0,0.00019177,2]
[375065440,1753516049742,-338.98769705,0.00019177,2]
[375065441,1753516049761,-460.0,0.00019178,2]
[375065442,1753516049783,-459.24784935,0.00019178,2]
[375065443,1753516049803,-460.0,0.00019178,2]
[375065444,1753516049822,-218.3646845,0.00019178,2]
[375065445,1753516049842,-460.92849877,0.00019178,2]
[375065446,1753516049863,-461.35879714,0.00019178,2]
[375065447,1753516049889,-460.0,0.00019178,2]
[375065448,1753516049908,-460.92394096,0.00019178,2]
[375065449,1753516049930,-460.0,0.00019178,2]
[375065450,1753516049952,-277.72006337,0.00019178,2]
[375065451,1753516049972,-463.87890063,0.00019178,2]
[375065452,1753516049994,-461.30853,0.00019178,2]
[375065453,1753516050016,-434.07835565,0.00019178,2]
[375065454,1753516050037,-464.91692136,0.00019178,2]
[375065455,1753516050058,-460.0,0.00019178,2]
[375065456,1753516050078,-460.0,0.00019178,2]
[375065457,1753516050098,-460.0,0.00019178,2]